fUSD/lending_fUSD_20240427
["ID","MTS","AMOUNT","RATE_DAILY","PERIOD"]
[323708725,1714176632180,-539.45421001,9.406e-05,2]
[323708726,1714176632191,-398.9070426,9.407e-05,2]
[323708727,1714176632202,-155.0,9.407e-05,2]
[323708728,1714176632211,-237.26,9.408e-05,2]
[323708729,1714176632222,-532.813531,9.613e-05,2]
[323708730,1714176632233,-155.0,0.000109,2]
[323708731,1714176632244,-153.61,0.0001144,2]
[323708733,1714176632568,-165.3,0.00011443,2]
[323708736,1714176632590,-4719.86662501,0.00011491,2]
[323708739,1714176632612,-672.3,0.00011491,2]
[323708742,1714176632635,-18507.83337499,0.00011491,2]
[323708745,1714176632645,-150.99,0.00011491,2]
[323708747,1714176632654,-970.93,0.00011523,2]
[323708748,1714176632663,-229.68,0.00011524,2]
[323708750,1714176632673,-153.61,0.00011589,2]
[323708753,1714176632682,-199.04,0.0001165,2]
[323708755,1714176632693,-237.26,0.00011672,2]
[323708756,1714176632702,-153.61,0.00011738,2]
[323708759,1714176632712,-755.03,0.00011742,2]
[323708760,1714176632721,-499.99,0.00011742,2]
[323708762,1714176632730,-787.42007613,0.00011879,2]
[323708765,1714176632740,-591.93,0.0001188,2]
[323708767,1714176632750,-153.61,0.00011887,2]
[323708769,1714176632760,-1748.09424184,0.00012,2]
[323708770,1714176632769,-2609.00653592,0.00012,2]
[323708772,1714176632779,-5000.0,0.00012,2]
[323708774,1714176632788,-409.17053992,0.00012035,2]
[323708777,1714176632797,-153.61,0.00012036,2]
[323708779,1714176632806,-509.0,0.00012301,2]
[323708781,1714176632816,-382.95277325,0.0001267,2]
[323708783,1714176632825,-7500.0,0.000127,2]
[323708785,1714176632833,-12202.8529,0.00012768,2]
[323708787,1714176632843,-2424.4885,0.00012768,2]
[323708789,1714176632851,-317.21042354,0.00012769,2]
[323708791,1714176632861,-31740.4139,0.00012794,2]
[323708793,1714176632870,-500.0,0.00012799,2]
[323708795,1714176632879,-500.0,0.00012799,2]
[323708797,1714176632889,-500.0,0.00012799,2]
[323708799,1714176632898,-610.23,0.00012799,2]
[323708801,1714176632907,-1345.79,0.00012799,2]
[323708803,1714176632916,-422.90417892,0.00012799,2]
[323708805,1714176632925,-500.0,0.00012799,2]
[323708807,1714176632934,-500.0,0.00012799,2]
[323708809,1714176632943,-500.0,0.00012799,2]
[323708811,1714176632952,-853.12,0.00012799,2]
[323708813,1714176632962,-150.0,0.00012799,2]
[323708815,1714176632971,-200.54,0.00012799,2]
[323708817,1714176632980,-500.0,0.00012799,2]
[323708819,1714176632989,-622.9,0.00012799,2]
[323708821,1714176632999,-500.0,0.00012799,2]
[323708823,1714176633008,-500.0,0.00012799,2]
[323708825,1714176633017,-500.0,0.00012799,2]
[323708827,1714176633026,-1022.27,0.00012799,2]
[323708828,1714176633036,-500.0,0.00012799,2]
[323708831,1714176633045,-500.0,0.00012799,2]
[323708832,1714176633054,-500.0,0.00012799,2]
[323708834,1714176633063,-500.0,0.00012799,2]
[323708836,1714176633073,-500.0,0.00012799,2]
[323708838,1714176633082,-500.0,0.00012799,2]
[323708839,1714176633093,-297.79,0.00012799,2]
[323708840,1714176633104,-371.8624966,0.00012799,2]
[323708841,1714176633113,-361.00424718,0.00012799,2]
[323708842,1714176633122,-376.45,0.00012799,2]
[323708843,1714176633132,-500.0,0.00012799,2]
[323708844,1714176633141,-501.34966844,0.00012799,2]
[323708845,1714176633150,-500.0,0.00012799,2]
[323708846,1714176633159,-500.0,0.00012799,2]
[323708847,1714176633169,-632.48,0.00012799,2]
[323708848,1714176633178,-500.0,0.00012799,2]
[323708849,1714176633187,-500.0,0.00012799,2]
[323708850,1714176633196,-500.0,0.00012799,2]
[323708851,1714176633206,-500.0,0.00012799,2]
[323708852,1714176633215,-500.0,0.00012799,2]
[323708853,1714176633224,-500.0,0.00012799,2]
[323708854,1714176633233,-500.0,0.00012799,2]
[323708855,1714176633243,-500.0,0.00012799,2]
[323708856,1714176633252,-501.4997022,0.00012799,2]
[323708857,1714176633261,-151.61,0.00012799,2]
[323708858,1714176633270,-500.0,0.00012799,2]
[323708859,1714176633279,-500.0,0.00012799,2]
[323708860,1714176633288,-500.0,0.00012799,2]
[323708861,1714176633297,-500.0,0.00012799,2]
[323708862,1714176633307,-500.0,0.00012799,2]
[323708863,1714176633316,-500.0,0.00012799,2]
[323708864,1714176633326,-500.0,0.00012799,2]
[323708865,1714176633335,-500.0,0.00012799,2]
[323708866,1714176633344,-500.0,0.00012799,2]
[323708867,1714176633353,-500.0,0.00012799,2]
[323708868,1714176633362,-1466.27,0.00012799,2]
[323708869,1714176633372,-500.0,0.00012799,2]
[323708870,1714176633381,-500.0,0.00012799,2]
[323708871,1714176633390,-500.0,0.00012799,2]
[323708872,1714176633400,-500.0,0.00012799,2]
[323708873,1714176633409,-500.0,0.00012799,2]
[323708874,1714176633418,-500.0,0.00012799,2]
[323708875,1714176633428,-500.0,0.00012799,2]
[323708876,1714176633437,-500.0,0.00012799,2]
[323708877,1714176633446,-500.0,0.00012799,2]
[323708878,1714176633456,-500.0,0.00012799,2]
[323708879,1714176633465,-580.69,0.00012799,2]
[323708880,1714176633474,-500.0,0.00012799,2]
[323708881,1714176633483,-551.54,0.00012799,2]
[323708882,1714176633493,-500.0,0.00012799,2]
[323708883,1714176633502,-500.0,0.00012799,2]
[323708884,1714176633511,-500.0,0.00012799,2]
[323708885,1714176633521,-500.0,0.00012799,2]
[323708886,1714176633530,-500.0,0.00012799,2]
[323708887,1714176633539,-500.0,0.00012799,2]
[323708888,1714176633549,-500.0,0.00012799,2]
[323708889,1714176633558,-500.0,0.00012799,2]
[323708890,1714176633567,-500.0,0.00012799,2]
[323708891,1714176633576,-809.46,0.00012799,2]
[323708892,1714176633586,-500.0,0.00012799,2]
[323708893,1714176633596,-203.61231704,0.00012799,2]
[323708894,1714176633607,-500.0,0.00012799,2]
[323708895,1714176633616,-500.0,0.00012799,2]
[323708896,1714176633626,-500.0,0.00012799,2]
[323708897,1714176633635,-500.0,0.00012799,2]
[323708898,1714176633644,-500.0,0.00012799,2]
[323708899,1714176633654,-500.0,0.00012799,2]
[323708900,1714176633664,-500.0,0.00012799,2]
[323708901,1714176633674,-500.0,0.00012799,2]
[323708902,1714176633683,-500.0,0.00012799,2]
[323708903,1714176633692,-269.03,0.00012799,2]
[323708904,1714176633701,-500.0,0.00012799,2]
[323708905,1714176633711,-500.0,0.00012799,2]
[323708906,1714176633720,-500.0,0.00012799,2]
[323708907,1714176633729,-500.0,0.00012799,2]
[323708908,1714176633738,-500.0,0.00012799,2]
[323708909,1714176633748,-584.13801515,0.00012799,2]
[323708910,1714176633757,-500.0,0.00012799,2]
[323708911,1714176633766,-500.0,0.00012799,2]
[323708912,1714176633775,-500.0,0.00012799,2]
[323708913,1714176633785,-500.0,0.00012799,2]
[323708914,1714176633795,-578.46,0.00012799,2]
[323708915,1714176633805,-500.0,0.00012799,2]
[323708916,1714176633814,-500.0,0.00012799,2]
[323708917,1714176633824,-500.0,0.00012799,2]
[323708918,1714176633834,-500.0,0.00012799,2]
[323708919,1714176633843,-500.0,0.00012799,2]
[323708920,1714176633852,-500.0,0.00012799,2]
[323708921,1714176633861,-1050.4,0.00012799,2]
[323708922,1714176633871,-500.0,0.00012799,2]
[323708923,1714176633880,-500.0,0.00012799,2]
[323708924,1714176633889,-500.0,0.00012799,2]
[323708925,1714176633899,-500.0,0.00012799,2]
[323708926,1714176633908,-500.0,0.00012799,2]
[323708927,1714176633919,-716.17,0.00012799,2]
[323708928,1714176633929,-500.0,0.00012799,2]
[323708929,1714176633939,-500.0,0.00012799,2]
[323708930,1714176633950,-500.0,0.00012799,2]
[323708931,1714176633960,-500.0,0.00012799,2]
[323708932,1714176633969,-500.0,0.00012799,2]
[323708933,1714176633979,-500.0,0.00012799,2]
[323708934,1714176633987,-500.0,0.00012799,2]
[323708935,1714176633999,-500.0,0.00012799,2]
[323708936,1714176634008,-500.0,0.00012799,2]
[323708937,1714176634017,-500.0,0.00012799,2]
[323708938,1714176634026,-500.0,0.00012799,2]
[323708939,1714176634035,-500.0,0.00012799,2]
[323708940,1714176634045,-500.0,0.00012799,2]
[323708941,1714176634054,-500.0,0.00012799,2]
[323708942,1714176634064,-500.0,0.00012799,2]
[323708943,1714176634073,-500.0,0.00012799,2]
[323708944,1714176634083,-500.0,0.00012799,2]
[323708945,1714176634092,-500.0,0.00012799,2]
[323708946,1714176634102,-531.85,0.00012799,2]
[323708947,1714176634111,-500.0,0.00012799,2]
[323708948,1714176634120,-500.0,0.00012799,2]
[323708949,1714176634130,-500.0,0.00012799,2]
[323708950,1714176634140,-500.0,0.00012799,2]
[323708951,1714176634149,-500.0,0.00012799,2]
[323708952,1714176634159,-500.0,0.00012799,2]
[323708953,1714176634169,-745.04,0.00012799,2]
[323708954,1714176634179,-500.0,0.00012799,2]
[323708955,1714176634188,-500.0,0.00012799,2]
[323708956,1714176634198,-500.0,0.00012799,2]
[323708957,1714176634208,-500.0,0.00012799,2]
[323708958,1714176634218,-500.0,0.00012799,2]
[323708959,1714176634227,-500.0,0.00012799,2]
[323708960,1714176634237,-500.0,0.00012799,2]
[323708961,1714176634250,-500.0,0.00012799,2]
[323708962,1714176634259,-500.0,0.00012799,2]
[323708963,1714176634268,-2070.85,0.00012799,2]
[323708964,1714176634278,-500.0,0.00012799,2]
[323708965,1714176634287,-371.37,0.00012799,2]
[323708966,1714176634296,-500.0,0.00012799,2]
[323708967,1714176634306,-500.0,0.00012799,2]
[323708968,1714176634315,-500.0,0.00012799,2]
[323708969,1714176634324,-986.29,0.00012799,2]
[323708970,1714176634333,-500.0,0.00012799,2]
[323708971,1714176634343,-500.0,0.00012799,2]
[323708972,1714176634352,-500.0,0.00012799,2]
[323708973,1714176634362,-500.0,0.00012799,2]
[323708974,1714176634373,-500.0,0.00012799,2]
[323708975,1714176634383,-500.0,0.00012799,2]
[323708976,1714176634393,-500.0,0.00012799,2]
[323708977,1714176634402,-500.0,0.00012799,2]
[323708978,1714176634412,-500.0,0.00012799,2]
[323708979,1714176634422,-500.0,0.00012799,2]
[323708980,1714176634432,-875.15,0.00012799,2]
[323708981,1714176634442,-500.0,0.00012799,2]
[323708982,1714176634452,-500.0,0.00012799,2]
[323708983,1714176634461,-500.0,0.00012799,2]
[323708984,1714176634471,-500.0,0.00012799,2]
[323708985,1714176634481,-500.0,0.00012799,2]
[323708986,1714176634491,-500.0,0.00012799,2]
[323708987,1714176634508,-500.0,0.00012799,2]
[323708988,1714176634517,-1201.67,0.00012799,2]
[323708989,1714176634527,-500.0,0.00012799,2]
[323708990,1714176634537,-500.0,0.00012799,2]
[323708991,1714176634547,-789.33,0.00012799,2]
[323708992,1714176634556,-500.0,0.00012799,2]
[323708993,1714176634566,-500.0,0.00012799,2]
[323708994,1714176634575,-500.0,0.00012799,2]
[323708995,1714176634586,-500.0,0.00012799,2]
[323708996,1714176634596,-500.0,0.00012799,2]
[323708997,1714176634608,-500.0,0.00012799,2]
[323708998,1714176634617,-1075.34,0.00012799,2]
[323708999,1714176634626,-500.0,0.00012799,2]
[323709000,1714176634635,-500.0,0.00012799,2]
[323709001,1714176634645,-500.0,0.00012799,2]
[323709002,1714176634655,-500.0,0.00012799,2]
[323709003,1714176634664,-500.0,0.00012799,2]
[323709004,1714176634674,-500.0,0.00012799,2]
[323709005,1714176634684,-500.0,0.00012799,2]
[323709006,1714176634693,-500.0,0.00012799,2]
[323709007,1714176634703,-500.0,0.00012799,2]
[323709008,1714176634713,-617.57,0.00012799,2]
[323709009,1714176634722,-500.0,0.00012799,2]
[323709010,1714176634732,-500.0,0.00012799,2]
[323709011,1714176634741,-500.0,0.00012799,2]
[323709012,1714176634754,-56193.3763,0.000128,2]
[323709013,1714176634764,-61675.8451058,0.000128,2]
[323709014,1714176634786,-3196.36,0.000128,2]
[323709015,1714176634813,-1587.52669612,0.000128,2]
[323709045,1714176640256,-509.0,0.00012328,2]
[323709046,1714176640267,-500.0,0.00012799,2]
[323709047,1714176640276,-639.77,0.00012799,2]
[323709048,1714176640286,-500.0,0.00012799,2]
[323709049,1714176640295,-2003.715,0.000128,2]
[323709050,1714176640307,-470.45499999,0.000128,2]
[323709051,1714176640318,-330.6464705,0.000128,2]
[323709052,1714176640329,-10021.51241479,0.000128,2]
[323709053,1714176640340,-3227.2,0.000128,2]
[323709054,1714176640364,-133491.00493728,0.000128,2]
[323709055,1714176640374,-979.82244926,0.000128,2]
[323709056,1714176640383,-163.52064039,0.00012869,2]
[323709057,1714176640393,-1221.59250652,0.0001287,2]
[323709058,1714176640403,-1000.0,0.00012891,2]
[323709059,1714176640413,-10000.0,0.00012891,2]
[323709060,1714176640423,-1000.0,0.00012895,2]
[323709061,1714176640432,-500.0,0.00012895,2]
[323709062,1714176640442,-1000.0,0.00012896,2]
[323709063,1714176640451,-1000.0,0.00012896,2]
[323709064,1714176640463,-500.0,0.00012896,2]
[323709065,1714176640472,-500.0,0.00012896,2]
[323709066,1714176640481,-579.35,0.00012897,2]
[323709067,1714176640490,-500.0,0.00012897,2]
[323709068,1714176640501,-322.87290787,0.00012897,2]
[323709069,1714176640510,-500.0,0.00012897,2]
[323709070,1714176640519,-500.0,0.00012897,2]
[323709071,1714176640529,-500.0,0.00012897,2]
[323709072,1714176640538,-500.0,0.00012897,2]
[323709073,1714176640547,-500.0,0.00012897,2]
[323709074,1714176640556,-500.0,0.00012897,2]
[323709075,1714176640566,-500.0,0.00012897,2]
[323709076,1714176640576,-500.0,0.00012897,2]
[323709077,1714176640585,-295.46349358,0.00012897,2]
[323709078,1714176640594,-500.0,0.00012897,2]
[323709079,1714176640608,-500.0,0.00012897,2]
[323709080,1714176640617,-500.0,0.00012897,2]
[323709081,1714176640627,-500.0,0.00012897,2]
[323709082,1714176640637,-500.0,0.00012897,2]
[323709083,1714176640646,-500.0,0.00012897,2]
[323709084,1714176640657,-500.0,0.00012897,2]
[323709085,1714176640666,-500.0,0.00012897,2]
[323709086,1714176640676,-500.0,0.00012897,2]
[323709087,1714176640685,-500.0,0.00012897,2]
[323709088,1714176640694,-563.49,0.00012897,2]
[323709089,1714176640704,-500.0,0.00012898,2]
[323709090,1714176640713,-272.72,0.00012898,2]
[323709091,1714176640722,-213.36047707,0.00012898,2]
[323709092,1714176640731,-500.0,0.00012898,2]
[323709094,1714176640741,-500.0,0.00012899,2]
[323709096,1714176640751,-777.83,0.00012899,2]
[323709098,1714176640760,-500.0,0.00012899,2]
[323709100,1714176640769,-500.0,0.00012899,2]
[323709102,1714176640778,-500.0,0.00012899,2]
[323709104,1714176640787,-500.0,0.00012899,2]
[323709106,1714176640796,-500.0,0.00012899,2]
[323709108,1714176640805,-500.0,0.00012899,2]
[323709110,1714176640815,-500.0,0.00012899,2]
[323709112,1714176640824,-780.83,0.00012899,2]
[323709114,1714176640833,-500.0,0.00012899,2]
[323709115,1714176640842,-500.0,0.00012899,2]
[323709118,1714176640852,-500.0,0.00012899,2]
[323709134,1714176640861,-25681.909314,0.000129,2]
[323709139,1714176641024,-366.0562541,0.000129,2]
[323709140,1714176641034,-337.45832663,0.000129,2]
[323709143,1714176641044,-171.25463459,0.000129,2]
[323709144,1714176641055,-873.38962639,0.000129,2]
[323709147,1714176641066,-10118.15682506,0.000129,2]
[323709149,1714176641077,-2419.22150125,0.000129,2]
[323709151,1714176641087,-2278.25999582,0.000129,2]
[323709153,1714176641096,-317.21042342,0.00012933,2]
[323709155,1714176641105,-2556.51303137,0.0001295,2]
[323709157,1714176641114,-229.68,0.00012965,2]
[323709159,1714176641123,-5475.54932987,0.0001299,2]
[323709161,1714176641133,-621.65874202,0.00012998,2]
[323709163,1714176641143,-217.80193261,0.00012998,2]
[323709165,1714176641152,-1089.54764354,0.00012998,2]
[323709167,1714176641162,-207.23400265,0.00012998,2]
[323709169,1714176641171,-211.68428899,0.00012998,2]
[323709171,1714176641180,-1854.849015,0.00012998,2]
[323709173,1714176641191,-1050.59920714,0.00012999,2]
[323709175,1714176641200,-207.25059114,0.00012999,2]
[323709177,1714176641210,-2101.35363379,0.00012999,2]
[323709179,1714176641219,-898.0,0.00013,2]
[323709181,1714176641228,-37434.62426341,0.00013,2]
[323709184,1714176641247,-4287.66451703,0.00013,2]
[323709186,1714176641258,-2642.15021336,0.00013,2]
[323709250,1714176643311,-500.0,0.00012799,2]
[323709251,1714176643321,-500.0,0.00012799,2]
[323709252,1714176643331,-84783.91227104,0.00013,2]
[323709253,1714176643342,-3233.92904765,0.00013,2]
[323709254,1714176643365,-862.0099998,0.00013,2]
[323709255,1714176643377,-3465.7968536,0.00013,2]
[323709256,1714176643389,-1455.0,0.00013,2]
[323709257,1714176643475,-1716.24579306,0.00013,2]
[323709258,1714176643581,-1839.58850946,0.00013,2]
[323709259,1714176643594,-1376.75454,0.00013,2]
[323709265,1714176646314,-409.17053992,0.00012999,2]
[323709266,1714176646327,-299.79048528,0.00012999,2]
[323709267,1714176646337,-1050.6768169,0.00012999,2]
[323709268,1714176646347,-4968.5621579,0.00013,2]
[323709269,1714176646421,-410.94599997,0.00013,2]
[323709271,1714177207318,317.65578739,0.0001,15]
[323709330,1714177832456,-621.78404617,9.794e-05,2]
[323709332,1714177832467,-38.59937287,9.795e-05,2]
[323709335,1714177832514,-169.23119633,9.795e-05,2]
[323709336,1714177832524,-155.0,9.796e-05,2]
[323709337,1714177832534,-227.7,9.806e-05,2]
[323709338,1714177832543,-150.0,9.999e-05,2]
[323709339,1714177832552,-133.28244499,0.0001,2]
[323709340,1714177832569,-155.26420475,0.0001,2]
[323709341,1714177832584,-344.78803525,0.0001,2]
[323709342,1714177832597,-300.31299785,0.0001,2]
[323709343,1714177832613,-414.91701817,0.0001,2]
[323709344,1714177832635,-271.2999999,0.0001,2]
[323709390,1714177838416,-9410.90000016,0.0001,2]
[323709392,1714177838428,-9435.75969563,0.0001,2]
[323709394,1714177838438,-266.041,0.00010137,2]
[323709396,1714177838447,-545.97906237,0.0001024,2]
[323709398,1714177838456,-155.0,0.000109,2]
[323709400,1714177838465,-150.0,0.00010999,2]
[323709402,1714177838474,-604.02,0.00011426,2]
[323709404,1714177838483,-670.9992395,0.00011464,2]
[323709409,1714177838528,-309.2207605,0.00011464,2]
[323709411,1714177838538,-185.92,0.000115,2]
[323709414,1714177838547,-2618.54124198,0.00011538,2]
[323709416,1714177838558,-2775.3758179,0.00011538,2]
[323709417,1714177838573,-3206.23113923,0.00011538,2]
[323709420,1714177838641,-9154.56129177,0.00011538,2]
[323709421,1714177838721,-6145.29050912,0.00011538,2]
[323709422,1714177838731,-172.26,0.00011597,2]
[323709423,1714177838740,-251.26,0.000119,2]
[323709424,1714177838749,-1748.09424184,0.00012,2]
[323709425,1714177838759,-5000.0,0.00012,2]
[323709426,1714177838769,-227.7,0.0001207,2]
[323709427,1714177838778,-300.0,0.000121,4]
[323709428,1714177838787,-700.0,0.000122,4]
[323709429,1714177838797,-1100.0,0.000123,4]
[323709430,1714177838806,-1500.0,0.000124,4]
[323709431,1714177838817,-1900.0,0.000125,4]
[323709433,1714177839023,-167.33,0.0001256,2]
[323709434,1714177839032,-300.0,0.000126,4]
[323709435,1714177839044,-300.0,0.000127,4]
[323709436,1714177839054,-210.036,0.000127,2]
[323709437,1714177839064,-3964.2352,0.000127,2]
[323709438,1714177839074,-639.63,0.00012799,2]
[323709439,1714177839083,-331.03399999,0.00012799,2]
[323709440,1714177839092,-500.0,0.00012799,2]
[323709441,1714177839102,-500.0,0.00012799,2]
[323709442,1714177839111,-153.56,0.00012799,2]
[323709443,1714177839120,-250.78,0.00012799,2]
[323709444,1714177839129,-500.0,0.00012799,2]
[323709446,1714177839138,-500.0,0.00012799,2]
[323709447,1714177839147,-500.0,0.00012799,2]
[323709448,1714177839158,-500.0,0.00012799,2]
[323709449,1714177839168,-500.0,0.00012799,2]
[323709450,1714177839177,-500.0,0.00012799,2]
[323709452,1714177839187,-500.0,0.00012799,2]
[323709453,1714177839196,-500.0,0.00012799,2]
[323709454,1714177839205,-500.0,0.00012799,2]
[323709455,1714177839214,-500.0,0.00012799,2]
[323709456,1714177839224,-16954.64949044,0.000128,2]
[323709457,1714177839233,-300.0,0.000128,4]
[323709458,1714177839243,-500.0,0.000128,2]
[323709459,1714177839252,-604.02,0.00012854,2]
[323709460,1714177839261,-163.52064039,0.00012869,2]
[323709461,1714177839281,-1000.0,0.00012896,2]
[323709462,1714177839300,-500.0,0.00012896,2]
[323709463,1714177839324,-765.4445,0.00012897,2]
[323709464,1714177839368,-50324.6809,0.00012897,2]
[323709465,1714177839416,-7500.0,0.00012898,2]
[323709466,1714177839454,-43692.8116,0.00012898,2]
[323709467,1714177839478,-1000.0,0.00012898,2]
[323709468,1714177839496,-1000.0,0.000129,2]
[323709469,1714177839508,-365.97088217,0.000129,2]
[323709470,1714177839518,-10000.0,0.000129,2]
[323709471,1714177839527,-300.0,0.000129,4]
[323709472,1714177839537,-993.92599347,0.000129,2]
[323709473,1714177839546,-56167.64297672,0.000129,2]
[323709474,1714177839556,-559.18061792,0.000129,2]
[323709475,1714177839566,-500.0,0.00012997,2]
[323709476,1714177839575,-500.0,0.00012997,2]
[323709477,1714177839585,-500.0,0.00012997,2]
[323709478,1714177839594,-584.8,0.00012997,2]
[323709479,1714177839604,-500.0,0.00012997,2]
[323709480,1714177839613,-500.0,0.00012997,2]
[323709481,1714177839622,-500.0,0.00012997,2]
[323709482,1714177839632,-500.0,0.00012997,2]
[323709483,1714177839642,-855.3,0.00012997,2]
[323709484,1714177839651,-150.0,0.00012997,2]
[323709485,1714177839660,-642.45,0.00012997,2]
[323709486,1714177839669,-500.0,0.00012997,2]
[323709487,1714177839679,-575.04,0.00012997,2]
[323709488,1714177839688,-500.0,0.00012997,2]
[323709489,1714177839697,-500.0,0.00012997,2]
[323709490,1714177839707,-500.0,0.00012997,2]
[323709491,1714177839716,-500.0,0.00012997,2]
[323709492,1714177839726,-500.0,0.00012997,2]
[323709493,1714177839736,-500.0,0.00012997,2]
[323709494,1714177839745,-500.0,0.00012997,2]
[323709495,1714177839755,-500.0,0.00012997,2]
[323709496,1714177839765,-500.0,0.00012997,2]
[323709497,1714177839774,-500.0,0.00012997,2]
[323709498,1714177839784,-500.0,0.00012997,2]
[323709499,1714177839795,-500.0,0.00012997,2]
[323709500,1714177839804,-500.0,0.00012997,2]
[323709501,1714177839814,-500.0,0.00012997,2]
[323709502,1714177839824,-238.66,0.00012997,2]
[323709503,1714177839833,-500.0,0.00012997,2]
[323709504,1714177839841,-500.0,0.00012997,2]
[323709505,1714177839851,-500.0,0.00012997,2]
[323709506,1714177839859,-500.0,0.00012997,2]
[323709507,1714177839869,-640.73,0.00012997,2]
[323709508,1714177839878,-543.88198614,0.00012997,2]
[323709509,1714177839887,-500.0,0.00012997,2]
[323709510,1714177839897,-500.0,0.00012997,2]
[323709511,1714177839907,-500.0,0.00012997,2]
[323709512,1714177839916,-500.0,0.00012997,2]
[323709513,1714177839928,-500.0,0.00012997,2]
[323709514,1714177839962,-1470.64,0.00012997,2]
[323709515,1714177839973,-500.0,0.00012997,2]
[323709516,1714177839982,-500.0,0.00012997,2]
[323709517,1714177839992,-599.88,0.00012997,2]
[323709518,1714177840001,-500.0,0.00012997,2]
[323709519,1714177840011,-500.0,0.00012997,2]
[323709520,1714177840021,-500.0,0.00012997,2]
[323709521,1714177840032,-500.0,0.00012997,2]
[323709522,1714177840042,-1056.15,0.00012997,2]
[323709523,1714177840051,-546.98,0.00012997,2]
[323709524,1714177840060,-500.0,0.00012997,2]
[323709525,1714177840071,-500.0,0.00012997,2]
[323709526,1714177840081,-500.0,0.00012997,2]
[323709527,1714177840091,-500.0,0.00012997,2]
[323709528,1714177840102,-500.0,0.00012997,2]
[323709529,1714177840113,-500.0,0.00012997,2]
[323709530,1714177840124,-500.0,0.00012997,2]
[323709531,1714177840134,-544.82,0.00012997,2]
[323709532,1714177840145,-500.0,0.00012997,2]
[323709533,1714177840156,-500.0,0.00012997,2]
[323709534,1714177840166,-500.0,0.00012997,2]
[323709535,1714177840177,-500.0,0.00012997,2]
[323709536,1714177840187,-500.0,0.00012997,2]
[323709537,1714177840198,-500.0,0.00012997,2]
[323709538,1714177840208,-500.0,0.00012997,2]
[323709539,1714177840219,-1027.47,0.00012997,2]
[323709540,1714177840228,-500.0,0.00012997,2]
[323709541,1714177840239,-500.0,0.00012997,2]
[323709542,1714177840250,-945.9,0.00012997,2]
[323709543,1714177840261,-500.0,0.00012997,2]
[323709544,1714177840272,-500.0,0.00012997,2]
[323709545,1714177840282,-500.0,0.00012997,2]
[323709546,1714177840293,-500.0,0.00012997,2]
[323709547,1714177840303,-500.0,0.00012997,2]
[323709548,1714177840312,-500.0,0.00012997,2]
[323709549,1714177840326,-500.0,0.00012997,2]
[323709550,1714177840337,-485.64,0.00012997,2]
[323709552,1714177840346,-500.0,0.00012997,2]
[323709554,1714177840355,-500.0,0.00012997,2]
[323709555,1714177840365,-500.0,0.00012997,2]
[323709556,1714177840375,-500.0,0.00012997,2]
[323709557,1714177840386,-500.0,0.00012997,2]
[323709558,1714177840396,-500.0,0.00012997,2]
[323709560,1714177840406,-500.0,0.00012997,2]
[323709561,1714177840417,-530.52,0.00012997,2]
[323709562,1714177840427,-500.0,0.00012997,2]